fUSD/lending_fUSD_20240409
["ID","MTS","AMOUNT","RATE_DAILY","PERIOD"]
[322022546,1712693441203,-806.87092686,0.000207,2]
[322022547,1712693441212,-806.87092686,0.000207,2]
[322022548,1712693441222,-806.87092686,0.000207,2]
[322022549,1712693441231,-806.87092686,0.000207,2]
[322022550,1712693441240,-806.87092686,0.000207,2]
[322022551,1712693441250,-806.87092686,0.000207,2]
[322022552,1712693441259,-806.87092686,0.000207,2]
[322022553,1712693441268,-806.87092686,0.000207,2]
[322022554,1712693441277,-806.87092686,0.000207,2]
[322022555,1712693441286,-806.87092686,0.000207,2]
[322022556,1712693441295,-806.87092686,0.000207,2]
[322022557,1712693441305,-806.87092686,0.000207,2]
[322022558,1712693441316,-806.87092686,0.000207,2]
[322022559,1712693441326,-806.87092686,0.000207,2]
[322022560,1712693441335,-806.87092686,0.000207,2]
[322022561,1712693441345,-806.87092686,0.000207,2]
[322022562,1712693441355,-806.87092686,0.000207,2]
[322022563,1712693441364,-806.87092686,0.000207,2]
[322022564,1712693441374,-806.87092686,0.000207,2]
[322022565,1712693441383,-806.87092686,0.000207,2]
[322022566,1712693441393,-806.87092686,0.000207,2]
[322022567,1712693441402,-806.87092686,0.000207,2]
[322022568,1712693441411,-806.87092686,0.000207,2]
[322022569,1712693441420,-806.87092686,0.000207,2]
[322022570,1712693441429,-806.87092686,0.000207,2]
[322022571,1712693441438,-806.87092686,0.000207,2]
[322022572,1712693441448,-745.08556528,0.00020724,2]
[322022573,1712693441457,-200.0,0.00020775,2]
[322022574,1712693441466,-162.63747727,0.0002079,2]
[322022575,1712693441475,-1000.0,0.00020795,2]
[322022576,1712693441485,-513.0,0.000208,2]
[322022577,1712693441494,-500.0,0.00020821,2]
[322022578,1712693441503,-500.0,0.00020821,2]
[322022579,1712693441512,-500.0,0.00020821,2]
[322022580,1712693441522,-500.0,0.00020821,2]
[322022581,1712693441531,-500.0,0.00020821,2]
[322022582,1712693441540,-1125.32,0.00020821,2]
[322022583,1712693441549,-500.0,0.00020821,2]
[322022584,1712693441558,-500.0,0.00020821,2]
[322022585,1712693441567,-620.15,0.00020821,2]
[322022586,1712693441576,-500.0,0.00020821,2]
[322022587,1712693441586,-500.0,0.00020821,2]
[322022588,1712693441595,-2419.48,0.00020821,2]
[322022589,1712693441604,-500.0,0.00020821,2]
[322022590,1712693441614,-500.0,0.00020821,2]
[322022591,1712693441623,-500.0,0.00020821,2]
[322022592,1712693441632,-500.0,0.00020821,2]
[322022593,1712693441642,-500.0,0.00020821,2]
[322022594,1712693441652,-500.0,0.00020821,2]
[322022595,1712693441662,-500.0,0.00020821,2]
[322022596,1712693441672,-514.07,0.00020821,2]
[322022597,1712693441681,-500.0,0.00020821,2]
[322022598,1712693441693,-500.0,0.00020821,2]
[322022599,1712693441703,-500.0,0.00020821,2]
[322022600,1712693441713,-798.57,0.00020821,2]
[322022601,1712693441722,-893.08,0.00020821,2]
[322022602,1712693441732,-500.0,0.00020821,2]
[322022603,1712693441742,-500.0,0.00020821,2]
[322022604,1712693441753,-999.07,0.00020821,2]
[322022605,1712693441763,-500.0,0.00020821,2]
[322022606,1712693441774,-500.0,0.00020821,2]
[322022607,1712693441783,-798.12,0.00020821,2]
[322022608,1712693441795,-516.22,0.00020821,2]
[322022609,1712693441805,-500.0,0.00020821,2]
[322022610,1712693441815,-1664.3,0.00020821,2]
[322022611,1712693441825,-500.0,0.00020821,2]
[322022612,1712693441834,-500.0,0.00020821,2]
[322022613,1712693441843,-227.19452451,0.00020821,2]
[322022614,1712693441852,-2571.69,0.00020821,2]
[322022615,1712693441861,-500.0,0.00020821,2]
[322022616,1712693441871,-500.0,0.00020821,2]
[322022617,1712693441881,-500.0,0.00020821,2]
[322022618,1712693441891,-500.0,0.00020821,2]
[322022619,1712693441901,-500.0,0.00020821,2]
[322022620,1712693441910,-500.0,0.00020821,2]
[322022621,1712693441919,-500.0,0.00020821,2]
[322022622,1712693441927,-1418.37,0.00020821,2]
[322022623,1712693441936,-500.0,0.00020821,2]
[322022624,1712693441945,-500.0,0.00020821,2]
[322022625,1712693441953,-601.46,0.00020821,2]
[322022626,1712693441962,-500.0,0.00020821,2]
[322022627,1712693441970,-500.0,0.00020821,2]
[322022628,1712693441979,-500.0,0.00020821,2]
[322022629,1712693441988,-500.0,0.00020821,2]
[322022630,1712693441997,-500.0,0.00020821,2]
[322022631,1712693442006,-581.03,0.00020821,2]
[322022632,1712693442015,-500.0,0.00020821,2]
[322022633,1712693442024,-500.0,0.00020821,2]
[322022634,1712693442033,-684.12,0.00020821,2]
[322022635,1712693442042,-858.6,0.00020821,2]
[322022636,1712693442051,-2748.48,0.00020821,2]
[322022637,1712693442060,-500.0,0.00020821,2]
[322022638,1712693442072,-500.0,0.00020821,2]
[322022639,1712693442081,-500.0,0.00020821,2]
[322022640,1712693442091,-1404.34,0.00020821,2]
[322022641,1712693442100,-500.0,0.00020821,2]
[322022642,1712693442109,-534.2875307,0.00020821,2]
[322022643,1712693442119,-500.0,0.00020821,2]
[322022644,1712693442128,-894.25,0.00020821,2]
[322022645,1712693442137,-3268.07,0.00020821,2]
[322022646,1712693442147,-823.24,0.00020821,2]
[322022647,1712693442155,-200.0,0.00020831,2]
[322022648,1712693442165,-1000.0,0.00020831,2]
[322022649,1712693442173,-500.0,0.00020831,2]
[322022650,1712693442182,-200.0,0.00020832,2]
[322022651,1712693442191,-1000.0,0.00020832,2]
[322022652,1712693442200,-1000.0,0.00020832,2]
[322022653,1712693442209,-500.0,0.00020832,2]
[322022654,1712693442218,-200.0,0.00020832,2]
[322022655,1712693442228,-160.0,0.00020882,2]
[322022656,1712693442237,-156.74977532,0.0002089,2]
[322022657,1712693442246,-160.0,0.00020891,2]
[322022658,1712693442255,-1000.0,0.00020895,2]
[322022659,1712693442265,-1000.0,0.00020895,2]
[322022660,1712693442274,-1000.0,0.00020895,2]
[322022661,1712693442283,-1000.0,0.00020895,2]
[322022662,1712693442293,-1000.0,0.00020895,2]
[322022663,1712693442302,-1000.0,0.00020895,2]
[322022664,1712693442312,-1000.0,0.00020895,2]
[322022665,1712693442324,-1000.0,0.00020895,2]
[322022666,1712693442333,-1000.0,0.00020895,2]
[322022667,1712693442342,-1000.0,0.00020895,2]
[322022668,1712693442353,-1000.0,0.00020895,2]
[322022669,1712693442362,-1000.0,0.00020895,2]
[322022670,1712693442371,-1000.0,0.00020895,2]
[322022671,1712693442382,-1000.0,0.00020895,2]
[322022672,1712693442392,-1000.0,0.00020895,2]
[322022673,1712693442401,-1000.0,0.00020895,2]
[322022674,1712693442412,-1000.0,0.00020895,2]
[322022675,1712693442421,-1000.0,0.00020895,2]
[322022676,1712693442430,-1000.0,0.00020895,2]
[322022677,1712693442441,-1000.0,0.00020895,2]
[322022678,1712693442453,-1000.0,0.00020895,2]
[322022679,1712693442462,-1000.0,0.00020895,2]
[322022680,1712693442472,-1000.0,0.00020895,2]
[322022681,1712693442482,-1000.0,0.00020895,2]
[322022682,1712693442492,-263.6881,0.00020895,2]
[322022683,1712693442504,-500.0,0.00020895,2]
[322022684,1712693442513,-500.0,0.00020895,2]
[322022685,1712693442523,-500.0,0.00020895,2]
[322022686,1712693442532,-500.0,0.00020895,2]
[322022687,1712693442541,-500.0,0.00020895,2]
[322022688,1712693442550,-500.0,0.00020895,2]
[322022689,1712693442560,-505.7484,0.00020895,2]
[322022690,1712693442569,-187.14442358,0.00020898,2]
[322022691,1712693442578,-187.14442356,0.00020899,2]
[322022692,1712693442587,-1000.0,0.000209,2]
[322022693,1712693442596,-1000.0,0.000209,2]
[322022694,1712693442605,-1018.0,0.000209,2]
[322022695,1712693442614,-1000.0,0.000209,2]
[322022696,1712693442623,-1000.0,0.000209,2]
[322022697,1712693442633,-538.0,0.000209,2]
[322022698,1712693442642,-1000.0,0.000209,2]
[322022699,1712693442650,-187.14442356,0.000209,2]
[322022700,1712693442661,-177.42215895,0.000209,2]
[322022701,1712693442670,-10000.0,0.000209,2]
[322022702,1712693442679,-177.42215895,0.000209,2]
[322022703,1712693442688,-500.0,0.000209,2]
[322022704,1712693442697,-160.0,0.000209,2]
[322022705,1712693442707,-1859.57162693,0.000209,2]
[322022706,1712693442716,-158.3844181,0.000209,2]
[322022707,1712693442725,-740.07636061,0.000209,2]
[322022708,1712693442734,-745.08556528,0.000209,2]
[322022709,1712693442743,-740.07636061,0.000209,2]
[322022710,1712693442753,-740.07636061,0.000209,2]
[322022711,1712693442762,-740.07636061,0.000209,2]
[322022712,1712693442771,-740.07636061,0.000209,2]
[322022713,1712693442780,-740.07636061,0.000209,2]
[322022714,1712693442790,-2425.05207274,0.000209,2]
[322022715,1712693442799,-578.23986105,0.000209,2]
[322022716,1712693442808,-232.74,0.00020943,2]
[322022717,1712693442817,-251.45,0.00020973,2]
[322022718,1712693442827,-188668.7162484,0.00020995,2]
[322022719,1712693442836,-407.21723758,0.00020998,2]
[322022720,1712693442845,-553.15103002,0.00020998,2]
[322022721,1712693442854,-1580.41392657,0.00020998,2]
[322022722,1712693442864,-808.72922029,0.00020998,2]
[322022723,1712693442873,-661.78401527,0.00020998,2]
[322022724,1712693442883,-3510.92503714,0.00020998,2]
[322022725,1712693442892,-4716.5472582,0.00020998,2]
[322022726,1712693442902,-2173.81938731,0.00020998,2]
[322022727,1712693442911,-222.36183567,0.00020998,2]
[322022728,1712693442920,-640.23975986,0.00020998,2]
[322022729,1712693442930,-3073.04383837,0.00020998,2]
[322022730,1712693442939,-188.08752277,0.00020998,2]
[322022731,1712693442948,-286.42994072,0.00020998,2]
[322022732,1712693442957,-19324.93994936,0.00020998,2]
[322022733,1712693442967,-648.2666,0.00020998,2]
[322022754,1712693443077,-1298.76033688,0.00020998,2]
[322022757,1712693443087,-171.36159057,0.00020998,2]
[322022759,1712693443097,-155.0,0.00020998,2]
[322022761,1712693443106,-3054.74637753,0.00020998,2]
[322022762,1712693443116,-1794.23380829,0.00020998,2]
[322022763,1712693443125,-155.0,0.00020998,2]
[322022764,1712693443135,-150.01,0.00020999,2]
[322022766,1712693443144,-5827.91546642,0.00020999,2]
[322022768,1712693443153,-590909.28470802,0.00021,2]
[322022793,1712693443421,-410261.20548556,0.00021,2]
[322022794,1712693443431,-333153.47764865,0.00021,2]
[322022795,1712693443440,-1190.47,0.00021,2]
[322022796,1712693443451,-33343.74492045,0.00021,2]
[322022797,1712693443460,-1334946.72093134,0.00021,2]
[322022798,1712693443471,-55712.49438996,0.00021,2]
[322022799,1712693443483,-4234.8,0.00021,2]
[322022800,1712693443499,-2417.59688237,0.00021,2]
[322022801,1712693443512,-460.73102947,0.00021,2]
[322022802,1712693443531,-806.87092686,0.000207,2]
[322022803,1712693443540,-66331.29253793,0.00021,2]
[322022804,1712693444000,-500.0,0.00019178,2]
[322022805,1712693444011,-213.635516,0.0002,2]
[322022806,1712693444020,-500.0,0.00020273,2]
[322022807,1712693444031,-500.0,0.00020547,2]
[322022808,1712693444041,-806.87092686,0.000207,2]
[322022809,1712693444050,-806.87092686,0.000207,2]
[322022810,1712693444060,-333.18496471,0.000207,2]
[322022811,1712693444072,-473.68596215,0.000207,2]
[322022812,1712693444082,-806.87092686,0.000207,2]
[322022813,1712693444092,-45.25531641,0.000207,2]
[322022814,1712693444105,-761.61561045,0.000207,2]
[322022815,1712693444115,-806.87092686,0.000207,2]
[322022816,1712693444125,-806.87092686,0.000207,2]
[322022817,1712693444135,-806.87092686,0.000207,2]
[322022818,1712693444145,-284.43189568,0.000207,2]
[322022819,1712693444159,-522.43903118,0.000207,2]
[322022820,1712693444169,-806.87092686,0.000207,2]
[322022821,1712693444180,-429.65181149,0.00020821,2]
[322022822,1712693444191,-500.0,0.00020821,2]
[322022823,1712693444201,-7601.36962372,0.00021,2]
[322022824,1712693444229,-6344953.63618512,0.00021,2]
[322022825,1712693444238,-167658.30843866,0.00021,2]
[322022826,1712693444249,-714.86624918,0.00021,2]
[322022827,1712693444259,-1789.96066559,0.00021,2]
[322022828,1712693444269,-8046.64058422,0.00021,2]
[322022829,1712693444279,-1300.0,0.00021,3]
[322022830,1712693444288,-256811.20460936,0.00021,2]
[322022831,1712693444301,-42223.477658,0.00021,2]
[322022832,1712693444313,-2936.09954424,0.00021,2]
[322022833,1712693444330,-1955.6416406,0.00021,2]
[322022834,1712693444341,-6837.4487977,0.00021,2]
[322022835,1712693444362,-500.0,0.00019178,2]
[322022836,1712693444372,-2626.05014651,0.00021,2]
[322022837,1712693444384,-1571.2760012,0.00021,2]
[322022838,1712693444403,-36444.16255185,0.00021,2]
[322022839,1712693444414,-14814.19808119,0.00021,2]
[322022840,1712693444426,-2022.6949102,0.00021,2]
[322022841,1712693444437,-729.82228752,0.00021,2]
[322022842,1712693444547,183.7097078,0.00017915,2]
[322022843,1712693444583,-1762.39188611,0.0001916,2]
[322022844,1712693444602,-1499.23772922,0.0001916,2]
[322022845,1712693444612,-531.63,0.00019178,2]
[322022846,1712693444622,-213.635516,0.00020822,2]
[322022847,1712693444631,-679432.74957247,0.00021,2]
[322022848,1712693444649,-1500.33434752,0.00021,2]
[322022849,1712693444662,-2154.11646351,0.00021,2]
[322022850,1712693444675,-348.92000001,0.00021,2]
[322022851,1712693444687,-2143.74774993,0.00021,2]
[322022852,1712693444699,-7058.3,0.00021,2]
[322022853,1712693444711,-666.17653099,0.00021,2]
[322022854,1712693445363,-180.82061113,0.00019177,2]
[322022855,1712693445373,-500.0,0.00019178,2]
[322022856,1712693445383,-500.0,0.00019178,2]
[322022857,1712693445394,-500.0,0.00019178,2]
[322022858,1712693445404,-500.0,0.00019452,2]
[322022859,1712693445413,-1075.27284518,0.00020795,3]
[322022860,1712693445423,-6005.36303778,0.00021,2]
[322022861,1712693445434,-1678.00322034,0.00021,2]
[322022862,1712693445446,-1504.90660788,0.00021,2]
[322022863,1712693445470,-5851.69067374,0.000205,2]
[322022864,1712693445478,-904173.32545676,0.00021,2]
[322022865,1712693445491,-5407.38848236,0.00021,2]
[322022866,1712693445511,-500.0,0.00019726,2]
[322022867,1712693445520,-4626.13093165,0.00021,2]
[322022868,1712693445533,-2682.72216315,0.00021,2]
[322022869,1712693445546,-2642.4,0.00021,2]
[322022870,1712693445557,-4695.72971756,0.00021,2]
[322022871,1712693445568,-1384.36412986,0.00021,2]
[322022873,1712693446131,-500.0,0.00019178,2]
[322022874,1712693446141,-2821.9207,0.00019867,2]
[322022875,1712693446151,-500.0,0.0002,2]
[322022876,1712693446160,-500.0,0.00020273,2]
[322022877,1712693446170,-500.0,0.00020547,2]
[322022878,1712693446180,-500.0,0.00020821,2]
[322022879,1712693446190,-574.69820884,0.00020999,2]
[322022880,1712693446199,-28940.43109116,0.00021,2]
[322022881,1712693446211,-28048.0,0.00021,2]
[322022882,1712693446370,-60.7199717,0.00021,2]
[322022883,1712693446385,-9742.61641727,0.00021,2]
[322022884,1712693446520,-500.0,0.00019452,2]
[322022885,1712693446530,-500.0,0.00019726,2]
[322022886,1712693446540,-13022.91221009,0.00021,2]
[322022887,1712693446634,-6231.59735195,0.00021,2]
[322022888,1712693446646,-1309.99765462,0.00021,2]
[322022889,1712693446658,-779.48879845,0.00021,2]
[322022890,1712693446738,-284651.04849019,0.00021,2]
[322022891,1712693446751,-2367.22350952,0.00021,2]
[322022901,1712693526697,1278.86264557,0.0001575,2]
[322022902,1712693599889,322.33,0.00017773,2]
[322022903,1712693667301,218.63867384,0.00017908,2]
[322022904,1712693814912,1062.06209167,0.00018001,2]
[322022917,1712693953357,2429.8192,0.00017908,2]
[322022918,1712694251228,306.21,0.00016325,2]
[322022926,1712694627736,218.63867384,0.00018002,2]
[322022947,1712694632345,-199.86363479,0.00018061,2]
[322022948,1712694632355,-854.94797612,0.00018062,2]
[322022949,1712694632417,-2160.14422388,0.00018062,2]
[322022950,1712694632427,-216.0,0.00018103,2]
[322022951,1712694632436,-6166.75576612,0.00018165,2]
[322022952,1712694632464,-3060.46779195,0.00018165,2]
[322022953,1712694632523,-14672.77644193,0.00018165,2]
[322022954,1712694632533,-221.9,0.00018183,2]
[322022955,1712694632543,-299.96,0.00018183,2]
[322022956,1712694632553,-250.0,0.00018206,2]
[322022957,1712694632561,-183.2,0.00018313,2]
[322022958,1712694632571,-306.21,0.00018589,2]
[322022959,1712694632580,-3801.6005,0.000187,2]
[322022960,1712694632589,-209.498,0.000187,2]
[322022961,1712694632598,-433.7713,0.000187,2]
[322022962,1712694632607,-9999.99,0.000187,2]
[322022963,1712694632617,-499.99,0.000187,2]
[322022964,1712694632627,-3528.71783378,0.000187,2]
[322022965,1712694632637,-784.0,0.00018706,2]
[322022966,1712694632646,-485.43,0.0001879,3]
[322022967,1712694632655,-100000.0,0.000188,2]
[322022968,1712694632665,-1100.2976,0.000188,2]
[322022969,1712694632674,-8499.3422,0.000188,2]
[322022970,1712694632684,-500.0,0.000188,2]
[322022972,1712694632698,-150.0,0.00018888,2]
[322022974,1712694632707,-150.0,0.00018888,2]
[322022976,1712694632716,-150.0,0.00018888,2]
[322022977,1712694632726,-3528.7178337,0.00018944,2]
[322022978,1712694632736,-1250.0,0.00019,3]
[322022980,1712694632745,-1000.0,0.00019035,2]
[322022981,1712694632754,-1585.91816998,0.00019078,2]
[322022982,1712694632763,-377.27925793,0.00019078,2]
[322022983,1712694632773,-266.4411,0.00019078,2]
[322022984,1712694632783,-1104.6963687,0.00019177,2]
[322022985,1712694632792,-500.0,0.00019177,2]
[322022986,1712694632802,-500.0,0.00019177,2]
[322022987,1712694632812,-500.0,0.00019177,2]
[322022988,1712694632821,-500.0,0.00019177,2]
[322022989,1712694632830,-500.0,0.00019177,2]
[322022990,1712694632839,-500.0,0.00019177,2]
[322022991,1712694632848,-500.0,0.00019177,2]
[322022992,1712694632858,-500.0,0.00019177,2]
[322022993,1712694632867,-500.0,0.00019177,2]
[322022994,1712694632877,-500.0,0.00019177,2]
[322022995,1712694632886,-500.0,0.00019177,2]
[322022996,1712694632895,-500.0,0.00019177,2]
[322022997,1712694632904,-310.08,0.00019177,2]
[322022998,1712694632913,-500.0,0.00019178,2]
[322022999,1712694632922,-500.0,0.00019178,2]
[322023000,1712694632931,-500.0,0.00019178,2]
[322023001,1712694632940,-500.0,0.00019178,2]
[322023002,1712694632949,-500.0,0.00019178,2]
[322023003,1712694632958,-500.0,0.00019178,2]
[322023004,1712694632966,-500.0,0.00019178,2]
[322023005,1712694632975,-500.0,0.00019178,2]
[322023006,1712694632984,-230.68343788,0.00019178,2]
[322023007,1712694632993,-500.0,0.00019178,2]
[322023008,1712694633002,-500.0,0.00019178,2]
[322023009,1712694633011,-500.0,0.00019178,2]
[322023010,1712694633021,-500.0,0.00019178,2]
[322023011,1712694633030,-500.0,0.00019178,2]
[322023012,1712694633039,-500.0,0.00019178,2]
[322023013,1712694633048,-500.0,0.00019178,2]
[322023014,1712694633058,-500.0,0.00019178,2]
[322023015,1712694633067,-500.0,0.00019178,2]
[322023016,1712694633076,-500.0,0.00019178,2]
[322023017,1712694633086,-500.0,0.00019178,2]
[322023018,1712694633095,-500.0,0.00019178,2]
[322023019,1712694633105,-500.0,0.00019178,2]
[322023020,1712694633114,-500.0,0.00019178,2]
[322023021,1712694633123,-500.0,0.00019178,2]
[322023022,1712694633133,-500.0,0.00019178,2]
[322023023,1712694633374,-500.0,0.00019178,2]
[322023024,1712694633384,-413.59,0.00019178,2]
[322023025,1712694633394,-500.0,0.00019178,2]
[322023026,1712694633404,-500.0,0.00019178,2]
[322023027,1712694633414,-500.0,0.00019178,2]
[322023028,1712694633423,-500.0,0.00019178,2]
[322023029,1712694633433,-500.0,0.00019178,2]
[322023030,1712694633444,-500.0,0.00019178,2]
[322023031,1712694633453,-308.74,0.00019178,2]
[322023032,1712694633463,-500.0,0.00019178,2]
[322023033,1712694633473,-500.0,0.00019178,2]
[322023034,1712694633483,-500.0,0.00019178,2]
[322023035,1712694633492,-500.0,0.00019178,2]
[322023036,1712694633501,-500.0,0.00019178,2]
[322023037,1712694633511,-500.0,0.00019178,2]
[322023038,1712694633521,-500.0,0.00019178,2]
[322023039,1712694633530,-500.0,0.00019178,2]
[322023040,1712694633540,-500.0,0.00019178,2]
[322023041,1712694633549,-538.9,0.00019178,2]
[322023042,1712694633559,-500.0,0.00019178,2]
[322023043,1712694633569,-474.8,0.00019178,2]
[322023044,1712694633579,-246.16,0.00019178,2]
[322023045,1712694633588,-500.0,0.00019178,2]
[322023046,1712694633598,-500.0,0.00019178,2]
[322023047,1712694633607,-500.0,0.00019178,2]
[322023048,1712694633616,-500.0,0.00019178,2]
[322023049,1712694633625,-500.0,0.00019178,2]
[322023050,1712694633634,-500.0,0.00019178,2]
[322023051,1712694633643,-500.0,0.00019178,2]
[322023052,1712694633653,-500.0,0.00019178,2]
[322023053,1712694633662,-500.0,0.00019178,2]
[322023054,1712694633671,-500.0,0.00019178,2]
[322023055,1712694633679,-500.0,0.00019178,2]
[322023056,1712694633691,-646.21,0.00019178,2]
[322023057,1712694633701,-500.0,0.00019178,2]
[322023058,1712694633710,-500.0,0.00019178,2]
[322023059,1712694633719,-500.0,0.00019178,2]
[322023060,1712694633728,-500.0,0.00019178,2]
[322023061,1712694633738,-500.0,0.00019178,2]
[322023062,1712694633747,-500.0,0.00019178,2]
[322023063,1712694633756,-500.0,0.00019178,2]
[322023064,1712694633767,-449.5,0.00019178,2]
[322023065,1712694633776,-500.0,0.00019178,2]
[322023066,1712694633785,-151.7,0.00019178,2]
[322023067,1712694633794,-369.0,0.00019178,2]
[322023068,1712694633804,-151.51258309,0.00019178,2]
[322023069,1712694633813,-500.0,0.00019178,2]
[322023070,1712694633823,-600.69747229,0.00019178,2]
[322023071,1712694633832,-423.84847023,0.00019178,2]
[322023072,1712694633842,-349.19,0.00019178,2]
[322023073,1712694633851,-500.0,0.00019178,2]
[322023074,1712694633861,-500.0,0.00019178,2]
[322023075,1712694633870,-500.0,0.00019178,2]
[322023076,1712694633879,-500.0,0.00019178,2]
[322023077,1712694633888,-500.0,0.00019178,2]
[322023078,1712694633898,-306.87,0.00019178,2]
[322023079,1712694633908,-500.0,0.00019178,2]
[322023080,1712694633917,-500.0,0.00019178,2]
[322023081,1712694633926,-150.0,0.00019178,2]
[322023082,1712694633935,-551.23,0.00019178,2]
[322023083,1712694633944,-500.0,0.00019178,2]
[322023084,1712694633953,-500.0,0.00019178,2]
[322023085,1712694633962,-355.84,0.00019178,2]
[322023086,1712694633971,-185.06241564,0.00019178,2]
[322023087,1712694633981,-500.0,0.00019178,2]
[322023088,1712694633990,-500.0,0.00019178,2]
[322023089,1712694633999,-169.57,0.00019178,2]
[322023090,1712694634009,-401.23,0.00019178,2]
[322023091,1712694634018,-309.65175607,0.00019178,2]
[322023092,1712694634027,-500.0,0.00019178,2]
[322023093,1712694634037,-230.71,0.00019178,2]
[322023094,1712694634046,-500.0,0.00019178,2]
[322023095,1712694634059,-500.0,0.00019178,2]
[322023096,1712694634068,-567.97276052,0.00019178,2]
[322023097,1712694634078,-320.75,0.00019178,2]
[322023098,1712694634087,-500.0,0.00019178,2]
[322023099,1712694634096,-614.36,0.00019178,2]
[322023100,1712694634106,-500.0,0.00019178,2]
[322023101,1712694634116,-166.9,0.00019178,2]
[322023102,1712694634125,-390.95,0.00019178,2]
[322023103,1712694634134,-191.19,0.00019178,2]
[322023104,1712694634142,-500.0,0.00019178,2]
[322023105,1712694634152,-500.0,0.00019178,2]
[322023106,1712694634161,-500.0,0.00019178,2]
[322023107,1712694634170,-500.0,0.00019178,2]
[322023108,1712694634179,-500.0,0.00019178,2]
[322023109,1712694634189,-585.04,0.00019178,2]
[322023110,1712694634198,-500.0,0.00019178,2]
[322023111,1712694634208,-500.0,0.00019178,2]
[322023112,1712694634225,-500.0,0.00019178,2]
[322023113,1712694634234,-500.0,0.00019178,2]
[322023114,1712694634244,-500.0,0.00019178,2]
[322023115,1712694634253,-500.0,0.00019178,2]
[322023116,1712694634263,-500.0,0.00019178,2]
[322023117,1712694634272,-500.0,0.00019178,2]
[322023118,1712694634281,-500.0,0.00019178,2]
[322023119,1712694634291,-500.0,0.00019178,2]
[322023120,1712694634301,-539.74,0.00019178,2]
[322023121,1712694634310,-500.0,0.00019178,2]
[322023122,1712694634319,-500.0,0.00019178,2]
[322023123,1712694634328,-533.22,0.00019178,2]
[322023124,1712694634338,-500.0,0.00019178,2]
[322023125,1712694634348,-500.0,0.00019178,2]
[322023126,1712694634358,-500.0,0.00019178,2]
[322023127,1712694634367,-500.0,0.00019178,2]
[322023128,1712694634377,-433.64,0.00019178,2]
[322023129,1712694634386,-500.0,0.00019178,2]
[322023130,1712694634396,-500.0,0.00019178,2]
[322023131,1712694634405,-619.72676257,0.00019178,2]
[322023132,1712694634414,-204.59921742,0.00019178,2]
[322023133,1712694634424,-500.0,0.00019178,2]
[322023134,1712694634433,-500.0,0.00019178,2]
[322023135,1712694634442,-500.0,0.00019178,2]
[322023136,1712694634451,-500.0,0.00019178,2]
[322023137,1712694634460,-298.48457376,0.00019178,2]
[322023138,1712694634470,-500.0,0.00019178,2]
[322023139,1712694634479,-539.58,0.00019178,2]
[322023140,1712694634488,-500.0,0.00019178,2]
[322023141,1712694634497,-500.0,0.00019178,2]
[322023142,1712694634506,-500.0,0.00019178,2]
[322023143,1712694634515,-500.0,0.00019178,2]
[322023144,1712694634524,-500.0,0.00019178,2]
[322023145,1712694634534,-500.0,0.00019178,2]
[322023146,1712694634543,-500.0,0.00019178,2]
[322023147,1712694634554,-521.83159561,0.00019178,2]
[322023148,1712694634563,-500.0,0.00019178,2]